[Event "Titled Tuesday Blitz July 11 Early 2023"]
[White "Shuvalova, Polina"]
[Black "Lopez Idarraga, Daniel Eduardo"]
[WhiteFideId "24171760"]
[BlackFideId "4405501"]
[WhiteElo "2692"]
[BlackElo "2340"]
[Result "1-0"]
[Round "5"]
[TimeControl "180+2"]
[Date "2023.07.11"]
[WhiteClock "0:00:08"]
[BlackClock "0:00:05"]
[Board "54"]

1. e4 {[%clk 0:03:00]}  c5 {[%clk 0:02:58]} 2. Nf3 {[%clk 0:02:59]}  Nc6 {[%clk 0:02:59]} 3. Bb5 {[%clk 0:02:59]}  g6 {[%clk 0:02:59]} 4. O-O {[%clk 0:02:58]}  Bg7 {[%clk 0:02:59]} 5. Bxc6 {[%clk 0:02:57]}  dxc6 {[%clk 0:02:58]} 6. d3 {[%clk 0:02:56]}  e5 {[%clk 0:02:58]} 7. Be3 {[%clk 0:02:52]}  Qe7 {[%clk 0:02:59]} 8. a3 {[%clk 0:02:47]}  Bg4 {[%clk 0:02:54]} 9. Nbd2 {[%clk 0:02:45]}  Nf6 {[%clk 0:02:53]} 10. h3 {[%clk 0:02:45]}  Bxf3 {[%clk 0:02:53]} 11. Nxf3 {[%clk 0:02:44]}  Nd7 {[%clk 0:02:53]} 12. b4 {[%clk 0:02:40]}  O-O {[%clk 0:02:41]} 13. Rb1 {[%clk 0:02:38]}  b6 {[%clk 0:02:40]} 14. Bg5 {[%clk 0:02:33]}  f6 {[%clk 0:02:36]} 15. Bd2 {[%clk 0:02:33]}  Rfd8 {[%clk 0:02:17]} 16. Qe2 {[%clk 0:02:32]}  Nf8 {[%clk 0:02:14]} 17. bxc5 {[%clk 0:02:30]}  b5 {[%clk 0:02:08]} 18. Ba5 {[%clk 0:02:25]}  Rd7 {[%clk 0:02:06]} 19. a4 {[%clk 0:01:57]}  a6 {[%clk 0:01:50]} 20. axb5 {[%clk 0:01:41]}  axb5 {[%clk 0:01:49]} 21. Bb6 {[%clk 0:01:42]}  Ne6 {[%clk 0:01:48]} 22. Ra1 {[%clk 0:01:37]}  Re8 {[%clk 0:01:37]} 23. Qe3 {[%clk 0:01:33]}  Bf8 {[%clk 0:01:37]} 24. Nh2 {[%clk 0:01:16]}  Nxc5 {[%clk 0:01:33]} 25. Bxc5 {[%clk 0:00:58]}  Qxc5 {[%clk 0:01:34]} 26. Qxc5 {[%clk 0:00:58]}  Bxc5 {[%clk 0:01:34]} 27. Ra6 {[%clk 0:00:58]}  Rc8 {[%clk 0:01:29]} 28. g3 {[%clk 0:00:44]}  h5 {[%clk 0:01:27]} 29. Kg2 {[%clk 0:00:42]}  Kf7 {[%clk 0:01:27]} 30. f4 {[%clk 0:00:41]}  Ke6 {[%clk 0:01:21]} 31. Nf3 {[%clk 0:00:39]}  exf4 {[%clk 0:00:59]} 32. gxf4 {[%clk 0:00:39]}  Be3 {[%clk 0:00:52]} 33. Nh4 {[%clk 0:00:36]}  Bxf4 {[%clk 0:00:47]} 34. Rxf4 {[%clk 0:00:29]}  g5 {[%clk 0:00:47]} 35. Rf5 {[%clk 0:00:29]}  gxh4 {[%clk 0:00:47]} 36. Rxb5 {[%clk 0:00:27]}  Rg7+ {[%clk 0:00:38]} 37. Kf2 {[%clk 0:00:27]}  Rg5 {[%clk 0:00:37]} 38. Rbb6 {[%clk 0:00:20]}  Rc5 {[%clk 0:00:33]} 39. c4 {[%clk 0:00:19]}  Kd6 {[%clk 0:00:34]} 40. Ke3 {[%clk 0:00:14]}  Rg8 {[%clk 0:00:33]} 41. Rb7 {[%clk 0:00:13]}  Rg3+ {[%clk 0:00:32]} 42. Kd4 {[%clk 0:00:13]}  Rcg5 {[%clk 0:00:21]} 43. c5+ {[%clk 0:00:09]}  Rxc5 {[%clk 0:00:20]} 44. Raa7 {[%clk 0:00:10]}  Rd5+ {[%clk 0:00:07]} 45. exd5 {[%clk 0:00:09]}  c5+ {[%clk 0:00:07]} 46. Kc4 {[%clk 0:00:09]}  Rxh3 {[%clk 0:00:07]} 47. Rb6+ {[%clk 0:00:06]}  Ke5 {[%clk 0:00:07]} 48. Re6+ {[%clk 0:00:07]}  Kf5 {[%clk 0:00:07]} 49. Rf7 {[%clk 0:00:08]}  Rg3 {[%clk 0:00:06]} 50. Rfxf6+ {[%clk 0:00:08]}  Kg4 {[%clk 0:00:07]} 51. Re4+ {[%clk 0:00:05]}  Kh3 {[%clk 0:00:07]} 52. Rff4 {[%clk 0:00:06]}  Rg4 {[%clk 0:00:07]} 53. d6 {[%clk 0:00:06]}  Kg3 {[%clk 0:00:06]} 54. Rxg4+ {[%clk 0:00:06]}  hxg4 {[%clk 0:00:06]} 55. d7 {[%clk 0:00:07]}  h3 {[%clk 0:00:07]} 56. d8=Q {[%clk 0:00:08]}  h2 {[%clk 0:00:05]} 57. Qb8+ {[%clk 0:00:08]} 1-0


[Site "https://www.chess.com"]

[Event "Titled Tuesday Blitz July 11 Early 2023"]
[White "Onslow, Alfie"]
[Black "Vokhidov, Shamsiddin"]
[WhiteFideId "436976"]
[BlackFideId "14204223"]
[WhiteElo "2280"]
[BlackElo "2919"]
[Result "0-1"]
[Round "5"]
[TimeControl "180+2"]
[Date "2023.07.11"]
[WhiteClock "0:00:00"]
[BlackClock "0:01:52"]
[Board "56"]

1. e4 {[%clk 0:02:58]}  g6 {[%clk 0:03:00]} 2. d4 {[%clk 0:02:54]}  Bg7 {[%clk 0:03:01]} 3. Nf3 {[%clk 0:02:53]}  d6 {[%clk 0:03:02]} 4. Bc4 {[%clk 0:02:50]}  Nc6 {[%clk 0:03:02]} 5. O-O {[%clk 0:02:49]}  Nf6 {[%clk 0:03:01]} 6. Qe2 {[%clk 0:02:46]}  O-O {[%clk 0:02:59]} 7. c3 {[%clk 0:02:45]}  e5 {[%clk 0:02:58]} 8. dxe5 {[%clk 0:02:39]}  dxe5 {[%clk 0:02:58]} 9. a4 {[%clk 0:02:37]}  Nh5 {[%clk 0:02:58]} 10. Bg5 {[%clk 0:02:30]}  Qe8 {[%clk 0:02:58]} 11. Na3 {[%clk 0:02:22]}  a6 {[%clk 0:02:56]} 12. Qd2 {[%clk 0:01:58]}  Bg4 {[%clk 0:02:53]} 13. Ne1 {[%clk 0:01:58]}  Na5 {[%clk 0:02:49]} 14. Ba2 {[%clk 0:01:55]}  Qxa4 {[%clk 0:02:47]} 15. Nd3 {[%clk 0:01:36]}  Qd7 {[%clk 0:02:17]} 16. Qe3 {[%clk 0:01:28]}  b6 {[%clk 0:02:10]} 17. b4 {[%clk 0:01:11]}  Nb7 {[%clk 0:02:07]} 18. Nc4 {[%clk 0:01:11]}  Be6 {[%clk 0:02:05]} 19. Ncxe5 {[%clk 0:01:07]}  Qe8 {[%clk 0:02:04]} 20. Bf4 {[%clk 0:00:12]}  Bxa2 {[%clk 0:02:01]} 21. Rxa2 {[%clk 0:00:11]}  Qe6 {[%clk 0:02:02]} 22. Re2 {[%clk 0:00:07]}  Rad8 {[%clk 0:02:01]} 23. h3 {[%clk 0:00:05]}  Rfe8 {[%clk 0:01:59]} 24. Bh2 {[%clk 0:00:03]}  Nd6 {[%clk 0:01:57]} 25. Rd1 {[%clk 0:00:03]}  Qb3 {[%clk 0:01:54]} 26. Red2 {[%clk 0:00:02]}  f6 {[%clk 0:01:53]} 27. Nc6 {[%clk 0:00:00]}  Nc4 {[%clk 0:01:52]} 0-1


[Site "https://www.chess.com"]

[Event "Titled Tuesday Blitz July 11 Early 2023"]
[White "AyMitecK"]
[Black "Dau Khuong Duy"]
[BlackFideId "12424722"]
[WhiteElo "2563"]
[BlackElo "2899"]
[Result "0-1"]
[Round "5"]
[TimeControl "180+2"]
[Date "2023.07.11"]
[WhiteClock "0:00:15"]
[BlackClock "0:00:18"]
[Board "57"]

1. e4 {[%clk 0:03:00]}  c5 {[%clk 0:02:59]} 2. Nf3 {[%clk 0:03:01]}  d6 {[%clk 0:02:59]} 3. Bb5+ {[%clk 0:03:00]}  Nd7 {[%clk 0:02:59]} 4. Ba4 {[%clk 0:03:00]}  Nf6 {[%clk 0:02:57]} 5. O-O {[%clk 0:03:00]}  e6 {[%clk 0:02:57]} 6. c4 {[%clk 0:03:00]}  Be7 {[%clk 0:02:57]} 7. Nc3 {[%clk 0:03:00]}  O-O {[%clk 0:02:57]} 8. d4 {[%clk 0:03:01]}  cxd4 {[%clk 0:02:56]} 9. Nxd4 {[%clk 0:03:02]}  a6 {[%clk 0:02:53]} 10. Qe2 {[%clk 0:03:00]}  Qc7 {[%clk 0:02:52]} 11. f3 {[%clk 0:02:57]}  Ne5 {[%clk 0:02:52]} 12. Bb3 {[%clk 0:02:56]}  b6 {[%clk 0:02:50]} 13. Be3 {[%clk 0:02:56]}  Bb7 {[%clk 0:02:51]} 14. Rac1 {[%clk 0:02:56]}  Rac8 {[%clk 0:02:51]} 15. Na4 {[%clk 0:02:52]}  Nfd7 {[%clk 0:02:49]} 16. f4 {[%clk 0:02:49]}  Nc6 {[%clk 0:02:49]} 17. Nf3 {[%clk 0:02:48]}  Nc5 {[%clk 0:02:46]} 18. Nxc5 {[%clk 0:02:47]}  bxc5 {[%clk 0:02:41]} 19. Bc2 {[%clk 0:02:48]}  a5 {[%clk 0:02:37]} 20. Rcd1 {[%clk 0:02:42]}  Rcd8 {[%clk 0:02:33]} 21. Bb1 {[%clk 0:02:41]}  Bf6 {[%clk 0:02:31]} 22. b3 {[%clk 0:02:40]}  a4 {[%clk 0:02:30]} 23. Qf2 {[%clk 0:02:32]}  axb3 {[%clk 0:02:22]} 24. axb3 {[%clk 0:02:33]}  e5 {[%clk 0:02:19]} 25. Nh4 {[%clk 0:02:24]}  Bxh4 {[%clk 0:02:16]} 26. Qxh4 {[%clk 0:02:25]}  Nd4 {[%clk 0:02:16]} 27. Bxd4 {[%clk 0:02:23]}  cxd4 {[%clk 0:02:14]} 28. Rf3 {[%clk 0:02:11]}  f6 {[%clk 0:02:08]} 29. Rh3 {[%clk 0:02:06]}  g6 {[%clk 0:02:03]} 30. b4 {[%clk 0:02:03]}  Ra8 {[%clk 0:01:57]} 31. Bc2 {[%clk 0:01:59]}  Bc8 {[%clk 0:01:57]} 32. Rg3 {[%clk 0:01:57]}  Qg7 {[%clk 0:01:25]} 33. c5 {[%clk 0:01:48]}  dxc5 {[%clk 0:01:24]} 34. Bb3+ {[%clk 0:01:46]}  Kh8 {[%clk 0:01:23]} 35. bxc5 {[%clk 0:01:42]}  Ra3 {[%clk 0:01:22]} 36. Rc1 {[%clk 0:01:37]}  Ba6 {[%clk 0:01:07]} 37. h3 {[%clk 0:01:31]}  d3 {[%clk 0:01:07]} 38. Be6 {[%clk 0:01:17]}  Qe7 {[%clk 0:00:45]} 39. Bd5 {[%clk 0:01:00]}  d2 {[%clk 0:00:44]} 40. Rd1 {[%clk 0:01:00]}  Qxc5+ {[%clk 0:00:42]} 41. Kh2 {[%clk 0:01:01]}  Rxg3 {[%clk 0:00:36]} 42. Qxg3 {[%clk 0:01:00]}  Qb4 {[%clk 0:00:25]} 43. Qf2 {[%clk 0:00:50]}  Qd6 {[%clk 0:00:21]} 44. f5 {[%clk 0:00:44]}  gxf5 {[%clk 0:00:20]} 45. Qxf5 {[%clk 0:00:44]}  Bc8 {[%clk 0:00:16]} 46. Qh5 {[%clk 0:00:36]}  f5 {[%clk 0:00:13]} 47. Rxd2 {[%clk 0:00:30]}  Qf6 {[%clk 0:00:13]} 48. Rf2 {[%clk 0:00:27]}  f4 {[%clk 0:00:13]} 49. Rc2 {[%clk 0:00:25]}  Qg7 {[%clk 0:00:13]} 50. Qf3 {[%clk 0:00:23]}  Re8 {[%clk 0:00:09]} 51. Rb2 {[%clk 0:00:23]}  Bd7 {[%clk 0:00:09]} 52. Rc2 {[%clk 0:00:24]}  Qe7 {[%clk 0:00:08]} 53. Rc7 {[%clk 0:00:23]}  Qd6 {[%clk 0:00:08]} 54. Qc3 {[%clk 0:00:23]}  Re7 {[%clk 0:00:08]} 55. Ra7 {[%clk 0:00:23]}  Kg7 {[%clk 0:00:08]} 56. Qc4 {[%clk 0:00:21]}  Qg6 {[%clk 0:00:08]} 57. Qc3 {[%clk 0:00:21]}  Qf6 {[%clk 0:00:09]} 58. Rc7 {[%clk 0:00:20]}  Be8 {[%clk 0:00:09]} 59. Rc6 {[%clk 0:00:19]}  Bxc6 {[%clk 0:00:08]} 60. Bxc6 {[%clk 0:00:20]}  Rc7 {[%clk 0:00:08]} 61. Qd3 {[%clk 0:00:17]}  Qxc6 {[%clk 0:00:08]} 62. Qd8 {[%clk 0:00:17]}  Rf7 {[%clk 0:00:08]} 63. Qg5+ {[%clk 0:00:17]}  Qg6 {[%clk 0:00:09]} 64. Qxe5+ {[%clk 0:00:18]}  Qf6 {[%clk 0:00:09]} 65. Qh5 {[%clk 0:00:18]}  f3 {[%clk 0:00:10]} 66. Qg4+ {[%clk 0:00:18]}  Kh8 {[%clk 0:00:08]} 67. gxf3 {[%clk 0:00:17]}  Qxf3 {[%clk 0:00:08]} 68. Qc8+ {[%clk 0:00:18]}  Kg7 {[%clk 0:00:08]} 69. Qc1 {[%clk 0:00:12]}  Qf2+ {[%clk 0:00:08]} 70. Kh1 {[%clk 0:00:12]}  Qf1+ {[%clk 0:00:09]} 71. Qxf1 {[%clk 0:00:12]}  Rxf1+ {[%clk 0:00:10]} 72. Kg2 {[%clk 0:00:12]}  Rf7 {[%clk 0:00:10]} 73. Kg3 {[%clk 0:00:13]}  Kf6 {[%clk 0:00:11]} 74. Kg4 {[%clk 0:00:14]}  Ke5 {[%clk 0:00:12]} 75. Kg5 {[%clk 0:00:13]}  Kxe4 {[%clk 0:00:13]} 76. Kh6 {[%clk 0:00:14]}  Ke5 {[%clk 0:00:13]} 77. h4 {[%clk 0:00:15]}  Kf5 {[%clk 0:00:11]} 78. h5 {[%clk 0:00:16]}  Rf6+ {[%clk 0:00:11]} 79. Kg7 {[%clk 0:00:14]}  Kg5 {[%clk 0:00:12]} 80. Kxh7 {[%clk 0:00:13]}  Rh6+ {[%clk 0:00:13]} 81. Kg7 {[%clk 0:00:13]}  Rxh5 {[%clk 0:00:14]} 82. Kf7 {[%clk 0:00:14]}  Rh6 {[%clk 0:00:15]} 83. Kg7 {[%clk 0:00:14]}  Rf6 {[%clk 0:00:15]} 84. Kh7 {[%clk 0:00:14]}  Rf5 {[%clk 0:00:15]} 85. Kg7 {[%clk 0:00:15]}  Rf4 {[%clk 0:00:16]} 86. Kh7 {[%clk 0:00:15]}  Rf7+ {[%clk 0:00:16]} 87. Kg8 {[%clk 0:00:15]}  Kg6 {[%clk 0:00:17]} 88. Kh8 {[%clk 0:00:15]}  Rf8# {[%clk 0:00:18]} 0-1


[Site "https://www.chess.com"]

[Event "Titled Tuesday Blitz July 11 Early 2023"]
[White "Chen, Max"]
[Black "Llorente Zaro, Alfonso"]
[WhiteFideId "2622440"]
[BlackFideId "2254131"]
[WhiteElo "2538"]
[BlackElo "2794"]
[Result "0-1"]
[Round "5"]
[TimeControl "180+2"]
[Date "2023.07.11"]
[WhiteClock "0:00:36"]
[BlackClock "0:01:35"]
[Board "58"]

1. e4 {[%clk 0:03:00]}  c6 {[%clk 0:02:55]} 2. c4 {[%clk 0:02:59]}  e5 {[%clk 0:02:54]} 3. Nf3 {[%clk 0:02:52]}  d6 {[%clk 0:02:55]} 4. d4 {[%clk 0:02:52]}  Nd7 {[%clk 0:02:55]} 5. Nc3 {[%clk 0:02:49]}  Ngf6 {[%clk 0:02:55]} 6. Be2 {[%clk 0:02:47]}  Be7 {[%clk 0:02:55]} 7. O-O {[%clk 0:02:47]}  a6 {[%clk 0:02:56]} 8. h3 {[%clk 0:02:45]}  O-O {[%clk 0:02:54]} 9. Be3 {[%clk 0:02:45]}  b5 {[%clk 0:02:55]} 10. b3 {[%clk 0:02:34]}  b4 {[%clk 0:02:54]} 11. Na4 {[%clk 0:02:28]}  Nxe4 {[%clk 0:02:54]} 12. a3 {[%clk 0:02:20]}  a5 {[%clk 0:02:51]} 13. Qc2 {[%clk 0:01:58]}  Nef6 {[%clk 0:02:43]} 14. dxe5 {[%clk 0:01:55]}  dxe5 {[%clk 0:02:44]} 15. Rfd1 {[%clk 0:01:53]}  Qc7 {[%clk 0:02:43]} 16. Nh4 {[%clk 0:01:52]}  g6 {[%clk 0:02:40]} 17. c5 {[%clk 0:01:34]}  Nd5 {[%clk 0:02:34]} 18. Nf3 {[%clk 0:01:22]}  Nxe3 {[%clk 0:02:23]} 19. fxe3 {[%clk 0:01:23]}  Nf6 {[%clk 0:02:21]} 20. Nb6 {[%clk 0:01:19]}  Rb8 {[%clk 0:02:11]} 21. axb4 {[%clk 0:01:19]}  axb4 {[%clk 0:02:12]} 22. Qc4 {[%clk 0:01:10]}  Be6 {[%clk 0:02:02]} 23. Qxb4 {[%clk 0:01:09]}  Nd5 {[%clk 0:01:54]} 24. Qe4 {[%clk 0:00:46]}  Nc3 {[%clk 0:01:50]} 25. Qxe5 {[%clk 0:00:45]}  Qxe5 {[%clk 0:01:45]} 26. Nxe5 {[%clk 0:00:45]}  Nxe2+ {[%clk 0:01:40]} 27. Kf2 {[%clk 0:00:46]}  Nc3 {[%clk 0:01:40]} 28. Nxc6 {[%clk 0:00:45]}  Nxd1+ {[%clk 0:01:37]} 29. Rxd1 {[%clk 0:00:44]}  Bxc5 {[%clk 0:01:38]} 30. Nxb8 {[%clk 0:00:41]}  Rxb8 {[%clk 0:01:35]} 31. Na4 {[%clk 0:00:36]}  Be7 {[%clk 0:01:35]} 0-1


[Site "https://www.chess.com"]

[Event "Titled Tuesday Blitz July 11 Early 2023"]
[White "Hajiyev, Kanan"]
[Black "Hilary46"]
[WhiteFideId "13404148"]
[WhiteElo "2531"]
[BlackElo "2753"]
[Result "0-1"]
[Round "5"]
[TimeControl "180+2"]
[Date "2023.07.11"]
[WhiteClock "0:00:22"]
[BlackClock "0:01:15"]
[Board "61"]

1. d4 {[%clk 0:03:00]}  d5 {[%clk 0:02:57]} 2. c4 {[%clk 0:03:00]}  c6 {[%clk 0:02:57]} 3. cxd5 {[%clk 0:03:00]}  cxd5 {[%clk 0:02:57]} 4. Nc3 {[%clk 0:03:01]}  Nf6 {[%clk 0:02:57]} 5. Nf3 {[%clk 0:03:02]}  Nc6 {[%clk 0:02:58]} 6. Bg5 {[%clk 0:03:02]}  Ne4 {[%clk 0:02:58]} 7. Bf4 {[%clk 0:03:03]}  Bf5 {[%clk 0:02:56]} 8. Qb3 {[%clk 0:03:00]}  Nxc3 {[%clk 0:02:51]} 9. bxc3 {[%clk 0:03:00]}  Na5 {[%clk 0:02:39]} 10. Qb5+ {[%clk 0:02:54]}  Bd7 {[%clk 0:02:39]} 11. Qb2 {[%clk 0:02:50]}  e6 {[%clk 0:02:30]} 12. e3 {[%clk 0:02:50]}  Rc8 {[%clk 0:02:29]} 13. Nd2 {[%clk 0:02:41]}  Be7 {[%clk 0:02:27]} 14. Bd3 {[%clk 0:02:39]}  O-O {[%clk 0:02:26]} 15. O-O {[%clk 0:02:39]}  b6 {[%clk 0:02:18]} 16. Rfc1 {[%clk 0:02:36]}  Bc6 {[%clk 0:02:14]} 17. Ba6 {[%clk 0:02:16]}  Bb7 {[%clk 0:02:14]} 18. Bxb7 {[%clk 0:02:12]}  Nxb7 {[%clk 0:02:14]} 19. c4 {[%clk 0:02:11]}  dxc4 {[%clk 0:02:14]} 20. Nxc4 {[%clk 0:02:10]}  Qd5 {[%clk 0:02:07]} 21. Ne5 {[%clk 0:02:01]}  f6 {[%clk 0:02:06]} 22. Nf3 {[%clk 0:01:47]}  Bd6 {[%clk 0:02:04]} 23. Bg3 {[%clk 0:00:44]}  Bxg3 {[%clk 0:02:03]} 24. hxg3 {[%clk 0:00:45]}  Nd6 {[%clk 0:02:03]} 25. a4 {[%clk 0:00:40]}  Rc4 {[%clk 0:01:57]} 26. Rxc4 {[%clk 0:00:38]}  Nxc4 {[%clk 0:01:58]} 27. Qb4 {[%clk 0:00:37]}  Nd6 {[%clk 0:01:35]} 28. Rc1 {[%clk 0:00:34]}  Rc8 {[%clk 0:01:31]} 29. Rxc8+ {[%clk 0:00:32]}  Nxc8 {[%clk 0:01:32]} 30. Qc3 {[%clk 0:00:32]}  Qd7 {[%clk 0:01:32]} 31. Qc4 {[%clk 0:00:29]}  Nd6 {[%clk 0:01:31]} 32. Qb4 {[%clk 0:00:29]}  Kf7 {[%clk 0:01:30]} 33. Nd2 {[%clk 0:00:29]}  Qc6 {[%clk 0:01:28]} 34. Qb1 {[%clk 0:00:29]}  Qxa4 {[%clk 0:01:18]} 35. Qxh7 {[%clk 0:00:27]}  Qd1+ {[%clk 0:01:17]} 36. Nf1 {[%clk 0:00:28]}  a5 {[%clk 0:01:15]} 37. Qh5+ {[%clk 0:00:22]}  Qxh5 {[%clk 0:01:15]} 0-1


[Site "https://www.chess.com"]

[Event "Titled Tuesday Blitz July 11 Early 2023"]
[White "Amilal Munkhdalai"]
[Black "feuervogel1000000"]
[WhiteFideId "4903250"]
[WhiteElo "2697"]
[BlackElo "2524"]
[Result "1-0"]
[Round "5"]
[TimeControl "180+2"]
[Date "2023.07.11"]
[WhiteClock "0:00:04"]
[BlackClock "0:00:00"]
[Board "64"]

1. e4 {[%clk 0:02:57]}  c6 {[%clk 0:02:57]} 2. Nc3 {[%clk 0:02:54]}  d5 {[%clk 0:02:57]} 3. Nf3 {[%clk 0:02:55]}  Bg4 {[%clk 0:02:57]} 4. h3 {[%clk 0:02:55]}  Bxf3 {[%clk 0:02:57]} 5. Qxf3 {[%clk 0:02:55]}  e6 {[%clk 0:02:57]} 6. d3 {[%clk 0:02:55]}  Bc5 {[%clk 0:02:56]} 7. Bd2 {[%clk 0:02:54]}  Nf6 {[%clk 0:02:53]} 8. g4 {[%clk 0:02:54]}  d4 {[%clk 0:02:52]} 9. Ne2 {[%clk 0:02:53]}  a5 {[%clk 0:02:50]} 10. g5 {[%clk 0:02:52]}  Nfd7 {[%clk 0:02:50]} 11. h4 {[%clk 0:02:53]}  Qb6 {[%clk 0:02:42]} 12. Rb1 {[%clk 0:02:52]}  Na6 {[%clk 0:02:40]} 13. Bh3 {[%clk 0:02:48]}  Nb4 {[%clk 0:02:40]} 14. c3 {[%clk 0:02:43]}  dxc3 {[%clk 0:02:35]} 15. Bxc3 {[%clk 0:02:40]}  Bxf2+ {[%clk 0:02:24]} 16. Kf1 {[%clk 0:02:40]}  Bc5 {[%clk 0:02:24]} 17. Bxg7 {[%clk 0:02:40]}  Rg8 {[%clk 0:02:25]} 18. Bc3 {[%clk 0:02:36]}  Nc2 {[%clk 0:02:24]} 19. Kg2 {[%clk 0:02:17]}  h6 {[%clk 0:02:18]} 20. Qh5 {[%clk 0:02:10]}  hxg5 {[%clk 0:02:11]} 21. Bxe6 {[%clk 0:02:03]}  gxh4+ {[%clk 0:02:11]} 22. Kh3 {[%clk 0:02:02]}  O-O-O {[%clk 0:02:11]} 23. Qxf7 {[%clk 0:01:53]}  Rgf8 {[%clk 0:02:10]} 24. Qh5 {[%clk 0:01:46]}  Kb8 {[%clk 0:01:52]} 25. Rbf1 {[%clk 0:01:41]}  Rxf1 {[%clk 0:01:41]} 26. Rxf1 {[%clk 0:01:41]}  Nf8 {[%clk 0:01:41]} 27. Bc4 {[%clk 0:01:12]}  Ne3 {[%clk 0:01:34]} 28. Rf7 {[%clk 0:01:06]}  Nxc4 {[%clk 0:01:32]} 29. dxc4 {[%clk 0:01:06]}  Rd3+ {[%clk 0:01:31]} 30. Kxh4 {[%clk 0:00:49]}  Qd8+ {[%clk 0:01:05]} 31. Bf6 {[%clk 0:00:48]}  Bf2+ {[%clk 0:01:04]} 32. Kg4 {[%clk 0:00:47]}  Qc8+ {[%clk 0:00:58]} 33. Qf5 {[%clk 0:00:47]}  Ne6 {[%clk 0:00:58]} 34. Be5+ {[%clk 0:00:12]}  Ka8 {[%clk 0:00:55]} 35. Qxf2 {[%clk 0:00:11]}  Qg8+ {[%clk 0:00:26]} 36. Kh4 {[%clk 0:00:11]}  Rd1 {[%clk 0:00:18]} 37. Ng3 {[%clk 0:00:08]}  Qg6 {[%clk 0:00:12]} 38. Rf8+ {[%clk 0:00:07]}  Nxf8 {[%clk 0:00:11]} 39. Qxf8+ {[%clk 0:00:07]}  Ka7 {[%clk 0:00:11]} 40. Qc5+ {[%clk 0:00:07]}  Ka6 {[%clk 0:00:12]} 41. Bd4 {[%clk 0:00:04]}  Qh6+ {[%clk 0:00:09]} 42. Kg4 {[%clk 0:00:04]}  Qe6+ {[%clk 0:00:05]} 43. Kf3 {[%clk 0:00:04]}  Qf7+ {[%clk 0:00:04]} 44. Ke2 {[%clk 0:00:05]}  Rxd4 {[%clk 0:00:02]} 45. Qxd4 {[%clk 0:00:05]}  Qe6 {[%clk 0:00:03]} 46. b3 {[%clk 0:00:05]}  Qg4+ {[%clk 0:00:03]} 47. Kf2 {[%clk 0:00:05]}  Qf4+ {[%clk 0:00:03]} 48. Kg2 {[%clk 0:00:05]}  Qc1 {[%clk 0:00:04]} 49. Qf2 {[%clk 0:00:05]}  Qc2 {[%clk 0:00:03]} 50. Qxc2 {[%clk 0:00:05]}  a4 {[%clk 0:00:00]} 51. bxa4 {[%clk 0:00:04]} 1-0


[Site "https://www.chess.com"]